bitfinex-derivatives/quotes_SOLF0:USTF0_20241217
["timestamp","ask_amount","ask_price","bid_price","bid_amount"]
[1734459342627,2.2001,227.23,227.19,2.2004]
[1734459343429,2.2001,227.23,227.2,1.10086755]
[1734459343727,2.2002,227.22,227.18,2.2005]
[1734459343930,2.2002,227.22,227.19,1.1008906]
[1734459344231,2.2002,227.22,227.14,10.24695044]
[1734459344232,12.52695044,227.24,227.14,72.77253488]
[1734459344526,10.24695044,227.21,227.15,5.76376667]
[1734459344726,10.24695044,227.21,227.1,120.6666344]
[1734459344727,2.201,227.13,227.1,145.54487416]
[1734459344935,2.28,227.14,227.11,5.76599159]
[1734459345127,2.28,227.14,227.09,72.77253488]
[1734459345128,2.28,227.14,227.08,72.77253488]
[1734459345325,2.2013,227.1,227.09,5.76768239]
[1734459345531,2.28,227.14,227.05,72.77253488]
[1734459345832,2.2016,227.07,227.03,72.77253488]
[1734459346026,2.28,227.07,227.04,5.77111795]
[1734459346226,2.28,227.07,227.01,145.54487416]
[1734459346528,2.28,227.07,227.02,2.86417703]
[1734459346730,10.24695044,227.06,226.97,74.27443488]
[1734459347031,10.24695044,227.06,226.97,1.5019]
[1734459347427,2.202,227.03,226.97,1.5019]
[1734459347628,2.28,227.02,226.97,1.5019]
[1734459348731,2.28,227.02,226.98,4.68477545]
[1734459348934,2.28,227.02,226.97,1.5019]
[1734459349136,2.28,227.02,226.98,4.6852378]
[1734459349432,2.28,227.02,226.97,1.5019]
[1734459349629,2.28,227.02,226.98,4.68851401]
[1734459349841,2.28,227.02,226.97,1.5019]
[1734459350231,4.4821,227.02,226.98,4.68896899]
[1734459350433,4.4821,227.02,226.99,4.68896899]
[1734459350634,4.4821,227.02,226.97,1.5019]
[1734459350836,4.4821,227.02,226.98,4.69206338]
[1734459351134,4.4821,227.02,226.99,4.69206338]
[1734459351327,4.4821,227.02,226.97,74.27443488]
[1734459351528,2.28,227.02,226.98,5.79770271]
[1734459351730,2.28,227.02,226.99,4.69588158]
[1734459351930,2.28,227.02,226.97,147.04677416]
[1734459352128,4.4821,227.02,226.98,5.7971657]
[1734459352329,4.4821,227.02,226.99,4.69536287]
[1734459352527,4.4821,227.02,226.97,74.27443488]
[1734459352727,4.4821,227.02,226.98,5.79865596]
[1734459352936,4.4821,227.02,226.99,4.69683974]
[1734459353136,4.4821,227.02,226.97,74.27443488]
[1734459353337,2.28,227.02,226.97,74.27443488]
[1734459353533,2.28,227.02,226.98,12.21072115]
[1734459353742,2.28,227.02,226.99,15.07534957]
[1734459353936,2.28,227.02,227.0,13.31251369]
[1734459354235,2.28,227.02,227.01,5.79835385]
[1734459354436,4.4822,227.02,227.01,5.79835385]
[1734459355229,4.4822,227.02,227.01,4.69656131]
[1734459355733,2.28,227.02,227.01,4.69656131]
[1734459356435,4.4821,227.02,227.01,4.69656131]
[1734459357639,2.28,227.02,227.01,5.79829764]
[1734459357937,2.28,227.02,227.01,4.69656131]
[1734459358341,2.28,227.02,227.01,5.79828465]
[1734459358638,2.28,227.02,227.01,4.69656131]
[1734459359340,2.28,227.02,226.97,1.5019]
[1734459359639,4.4821,227.02,226.98,13.30396066]
[1734459359840,4.4821,227.02,226.99,4.69312964]
[1734459360141,4.4821,227.02,227.0,4.69315962]
[1734459360439,4.4821,227.02,226.97,3.7044]
[1734459360633,4.4821,227.02,226.98,18.01922565]
[1734459360830,4.4821,227.02,226.99,5.7948693]
[1734459361033,4.4821,227.02,227.0,4.69311998]
[1734459361240,4.4821,227.02,226.97,3.7044]
[1734459361540,12.52695044,227.02,226.93,24.25764203]
[1734459361844,12.52695044,227.02,226.89,6.06455721]
[1734459362140,6.56474828,226.97,226.9,18.02574481]
[1734459362339,2.28,226.96,226.91,5.79701941]
[1734459362634,2.28,226.96,226.88,11.45753779]
[1734459362635,2.203,226.93,226.88,6.06455721]
[1734459362934,2.203,226.93,226.89,19.86827907]
[1734459363138,2.28,226.96,226.9,5.79500343]
[1734459363331,2.28,226.96,226.89,6.56474828]
[1734459363332,2.2028,226.94,226.89,8.76804828]
[1734459363534,2.2028,226.94,226.9,4.68825611]
[1734459363733,2.2028,226.94,226.89,8.76804828]
[1734459363931,2.2028,226.94,226.9,4.68814887]
[1734459364242,2.2028,226.94,226.89,2.2033]
[1734459364629,2.28,226.96,226.9,4.68564799]
[1734459364831,2.28,226.96,226.91,4.68508187]
[1734459365033,2.28,226.96,226.92,4.68500569]
[1734459365240,2.28,226.96,226.89,10.25721825]
[1734459365434,2.28,226.96,226.9,17.98103005]
[1734459365635,2.28,226.96,226.91,5.78390277]
[1734459365934,2.28,226.96,226.92,4.68185458]
[1734459366129,2.28,226.96,226.9,6.06455721]
[1734459366335,2.28,226.96,226.91,5.78066134]
[1734459366537,2.28,226.96,226.92,5.78062023]
[1734459366731,2.2025,226.98,226.94,2.2028]
[1734459369640,2.28,226.98,226.89,16.32177546]
[1734459369846,2.28,226.98,226.9,4.67695381]
[1734459370048,2.2031,226.92,226.88,2.2033]
[1734459370846,2.2031,226.92,226.87,5.16427404]
[1734459370847,2.203,226.93,226.89,2.2033]
[1734459371149,2.28,226.98,226.89,2.2033]
[1734459371447,2.2031,226.92,226.86,2.9647]
[1734459371649,2.2031,226.92,226.87,4.67459243]
[1734459371844,2.2031,226.92,226.86,2.9647]
[1734459372046,2.2031,226.92,226.87,4.6760787]
[1734459372247,2.2031,226.92,226.86,2.9647]
[1734459372447,2.2031,226.92,226.88,2.2034]
[1734459372653,4.483,226.93,226.86,2.9647]
[1734459372949,4.483,226.93,226.88,2.2033]
[1734459373248,2.2026,226.97,226.86,37.47956028]
[1734459373440,10.25721825,227.04,226.89,10.25721825]
[1734459373646,2.28,227.03,226.94,2.2028]
[1734459373941,2.2024,226.99,226.94,2.2028]
[1734459374146,2.28,226.98,226.94,2.2028]
[1734459374649,4.4825,226.98,226.94,2.2028]
[1734459376249,2.2026,226.97,226.93,2.2029]
[1734459376446,2.28,226.98,226.92,72.77253488]
[1734459376646,2.28,226.98,226.93,6.06455721]
[1734459376852,4.4825,226.98,226.93,2.2029]
[1734459377249,2.28,226.98,226.93,2.2029]
[1734459377657,2.2027,226.96,226.92,147.74787416]
[1734459377954,12.53721825,226.98,226.9,145.54487416]
[1734459378146,12.53721825,226.98,226.89,145.54487416]
[1734459378348,10.25721825,226.95,226.88,266.21150856]
[1734459378551,2.28,226.98,226.87,266.21150856]
[1734459378751,10.25721825,226.95,226.87,48.51489285]
[1734459378955,10.25721825,226.95,226.86,269.17620856]
[1734459379255,2.28,226.98,226.86,21.15778482]
[1734459379550,10.25721825,226.95,226.86,1.5095]
[1734459380453,10.25721825,226.95,226.85,417.04480166]
[1734459380655,10.25721825,226.89,226.84,229.51484455]
[1734459380852,2.28,226.88,226.82,417.04480166]
[1734459381048,2.2039,226.84,226.82,417.04480166]
[1734459381251,2.28,226.88,226.83,4.686338]
[1734459381454,2.28,226.88,226.81,598.04475336]
[1734459381755,2.2039,226.83,226.82,4.68565066]
[1734459381946,2.28,226.83,226.8,417.04480166]
[1734459382148,2.2041,226.81,226.79,175.09093513]
[1734459382352,2.2041,226.81,226.78,598.04475336]
[1734459382555,2.28,226.83,226.79,4.6881815]
[1734459382755,2.28,226.83,226.78,120.6666344]
[1734459382957,2.28,226.83,226.77,417.04480166]
[1734459383154,2.2043,226.79,226.78,4.68903028]
[1734459383352,12.53721825,226.83,226.74,598.04475336]
[1734459383551,12.53721825,226.83,226.75,4.68941465]
[1734459383746,12.53721825,226.83,226.76,4.68941465]
[1734459383954,12.53721825,226.83,226.74,266.21150856]
[1734459384153,12.53721825,226.83,226.75,4.68927659]
[1734459384453,2.2046,226.76,226.73,266.21150856]
[1734459384657,0.0988,226.92,226.74,5.79373693]
[1734459384658,2.28,226.75,226.74,5.79373693]
[1734459384957,2.28,226.75,226.74,4.69078437]
[1734459385159,2.28,226.75,226.74,4.69059456]
[1734459386355,4.4847,226.75,226.74,12.2056168]
[1734459386858,2.28,226.75,226.72,266.21150856]
[1734459387159,2.28,226.75,226.73,4.56495692]
[1734459387461,2.28,226.75,226.72,266.21150856]
[1734459387655,2.28,226.75,226.73,4.56653623]
[1734459387861,2.28,226.75,226.72,145.54487416]
[1734459388056,2.28,226.75,226.73,4.56678941]
[1734459388251,2.28,226.75,226.72,145.54487416]
[1734459388456,2.2048,226.74,226.73,4.57132404]
[1734459388961,2.28,226.75,226.71,82.59369649]
[1734459389158,2.28,226.75,226.72,4.56829992]
[1734459389459,2.28,226.75,226.73,4.56829992]
[1734459389761,2.28,226.76,226.74,4.56829992]
[1734459389960,2.28,226.78,226.75,4.56829992]
[1734459390262,2.28,226.78,226.76,4.56829992]
[1734459390557,5.38668835,226.89,226.77,216.77171177]
[1734459390558,2.28,226.86,226.77,216.77171177]
[1734459390758,2.28,226.86,226.8,24.25764203]
[1734459390957,2.28,226.86,226.83,145.54487416]
[1734459391162,2.28,226.86,226.84,4.56829992]
[1734459391363,2.28,226.86,226.81,1.5035]
[1734459391661,2.204,226.82,226.81,1.5035]
[1734459391955,12.53721825,226.86,226.79,145.54487416]
[1734459391956,2.2042,226.8,226.79,145.54487416]
[1734459392161,14.74141825,226.8,226.79,1.1026875]
[1734459392352,12.53721825,226.8,226.73,72.77253488]
[1734459392660,12.53721825,226.8,226.74,5.67070729]
[1734459392862,12.53721825,226.8,226.75,4.5677958]
[1734459393064,10.25721825,226.83,226.76,4.5677958]
[1734459393254,2.2041,226.81,226.77,4.5677958]
[1734459393455,2.28,226.82,226.78,4.5677958]
[1734459393660,4.4841,226.82,226.76,2.2046]
[1734459393859,4.4841,226.82,226.77,4.56508373]
[1734459394154,4.4841,226.82,226.78,4.56508373]
[1734459394363,2.2041,226.81,226.76,76.57353488]
[1734459394555,2.2041,226.81,226.77,4.56413446]
[1734459394865,2.2041,226.81,226.76,76.57353488]
[1734459394866,2.2041,226.81,226.78,4.5637788]
[1734459395065,2.2041,226.81,226.79,4.5637788]
[1734459395261,2.2041,226.81,226.76,74.36893488]
[1734459395465,2.2041,226.81,226.77,129.33125959]
[1734459395764,2.2041,226.81,226.78,4.56325082]
[1734459395959,2.2042,226.8,226.79,4.56325082]
[1734459397666,4.4841,226.82,226.79,4.56325082]
[1734459397862,2.28,226.82,226.77,72.77253488]
[1734459398265,2.2045,226.78,226.76,1.5964]
[1734459398464,2.28,226.77,226.76,1.5964]
[1734459398765,2.28,226.77,226.76,6.16387361]
[1734459399060,2.28,226.77,226.76,1.5964]
[1734459400764,2.28,226.79,226.76,50.11129285]
[1734459400961,2.2044,226.78,226.76,1.5964]
[1734459402563,2.2044,226.78,226.76,25.85404203]
[1734459402767,2.2044,226.78,226.76,74.36893488]
[1734459403370,2.2044,226.78,226.76,25.85404203]
[1734459404569,2.2044,226.78,226.76,74.36893488]
[1734459404768,6.57420612,226.77,226.75,72.77253488]
[1734459404967,6.57420612,226.76,226.74,18.19308482]
[1734459405170,2.2047,226.75,226.72,24.25764203]
[1734459405374,2.28,226.74,226.71,74.30723488]
[1734459405671,2.28,226.74,226.71,1.5347]
[1734459406275,2.205,226.73,226.71,1.5347]
[1734459406674,2.205,226.73,226.71,74.30723488]
[1734459406870,2.28,226.74,226.69,72.77253488]
[1734459407182,2.28,226.74,226.7,52.54155581]
[1734459407378,2.2049,226.73,226.7,24.25764203]
[1734459407579,2.28,226.74,226.7,24.25764203]
[1734459407775,10.27622278,226.78,226.7,24.25764203]
[1734459407976,2.28,226.77,226.71,54.74494456]
[1734459408177,2.28,226.76,226.71,26.46274203]
[1734459408575,2.28,226.76,226.72,47.96770363]
[1734459408576,4.4846,226.76,226.72,47.96770363]
[1734459408776,4.4846,226.76,226.72,24.25764203]
[1734459409070,2.28,226.77,226.74,72.77253488]
[1734459409275,4.4845,226.78,226.75,129.51142874]
[1734459409478,2.28,226.78,226.75,72.77253488]
[1734459409682,2.2045,226.77,226.74,74.35273488]
[1734459409879,2.28,226.78,226.75,129.53692526]
[1734459410077,2.28,226.78,226.75,72.77253488]
[1734459411182,2.2045,226.77,226.76,4.57687288]
[1734459411582,2.2045,226.77,226.75,145.54487416]
[1734459411583,2.28,226.78,226.75,145.54487416]
[1734459411975,2.2045,226.77,226.75,145.54487416]
[1734459412882,2.2045,226.77,226.76,4.57990151]
[1734459414585,2.2047,226.76,226.75,266.21150856]
[1734459414880,2.28,226.78,226.74,18.19308482]
[1734459415078,2.28,226.78,226.71,266.21150856]
[1734459415478,2.28,226.78,226.7,417.04480166]
[1734459415779,2.28,226.78,226.71,4.58710649]
[1734459415983,2.28,226.78,226.7,417.04480166]
[1734459416283,2.205,226.73,226.71,4.58754427]
[1734459416484,2.28,226.72,226.7,417.04480166]
[1734459416781,2.28,226.72,226.69,417.04480166]
[1734459417086,2.28,226.74,226.71,268.41660856]
[1734459417283,2.28,226.74,226.72,4.58959354]
[1734459417682,2.28,226.74,226.71,419.24990166]
[1734459417883,2.28,226.76,226.72,4.59021495]
[1734459418085,4.4846,226.76,226.71,419.24990166]
[1734459418289,4.4846,226.76,226.72,4.59033319]
[1734459418477,4.4846,226.76,226.71,419.24990166]
[1734459418786,4.4846,226.76,226.72,617.49468356]
[1734459418984,4.4846,226.76,226.73,4.59253679]
[1734459419185,2.2046,226.76,226.72,417.04480166]
[1734459419385,4.4846,226.76,226.73,4.59477588]
[1734459419583,2.28,226.76,226.72,417.04480166]
[1734459419785,2.28,226.79,226.73,617.46597152]
[1734459419983,2.28,226.79,226.74,4.59489268]
[1734459420183,2.2044,226.78,226.73,419.24970166]
[1734459420490,2.28,226.79,226.73,417.04480166]
[1734459420682,10.27622278,226.82,226.74,4.59775419]
[1734459420883,2.28,226.81,226.75,4.59775419]
[1734459421186,2.28,226.81,226.72,180.9999517]
[1734459421187,10.27622278,226.78,226.72,180.9999517]
[1734459421387,2.2048,226.75,226.71,417.04480166]
[1734459421687,2.28,226.74,226.72,4.6024629]
[1734459421986,2.28,226.74,226.71,417.04480166]
[1734459422189,2.28,226.74,226.7,417.04480166]
[1734459422388,2.28,226.74,226.71,4.60718422]
[1734459422591,2.28,226.74,226.72,617.51048138]
[1734459422788,2.28,226.74,226.73,4.60865167]
[1734459422992,2.28,226.74,226.72,57.32443771]
[1734459423286,2.28,226.74,226.73,4.61253928]
[1734459423692,10.27622278,226.81,226.73,4.61253928]
[1734459423993,2.28,226.8,226.74,4.61253928]
[1734459424193,2.28,226.8,226.75,4.61253928]
[1734459424394,2.28,226.8,226.72,417.04480166]
[1734459424592,2.28,226.8,226.73,4.61518323]
[1734459424890,10.27622278,226.78,226.71,180.9999517]
[1734459425089,10.27622278,226.78,226.68,598.04475336]
[1734459425293,10.27622278,226.78,226.69,4.61505265]
[1734459425489,10.27622278,226.78,226.7,4.61505265]
[1734459425794,10.27622278,226.78,226.67,182.5962517]
[1734459425795,10.27622278,226.78,226.67,418.64110166]
[1734459425993,10.27622278,226.75,226.68,617.57257841]
[1734459426196,2.28,226.74,226.69,4.6179009]
[1734459426494,2.2055,226.67,226.66,417.34721166]
[1734459426696,4.4855,226.67,226.66,62.25849386]
[1734459426892,4.4855,226.67,226.66,617.87501555]
[1734459427093,2.2056,226.66,226.65,391.53862795]
[1734459427292,10.27622278,226.66,226.63,150.8332931]
[1734459427492,10.27622278,226.66,226.59,6.06455721]
[1734459427687,10.27622278,226.66,226.57,229.51484455]
[1734459427688,2.2063,226.58,226.57,6.06455721]
[1734459427887,2.28,226.58,226.55,6.06455721]
[1734459428396,2.28,226.58,226.53,6.06455721]
[1734459428698,2.28,226.58,226.54,4.38842479]
[1734459428996,2.28,226.59,226.55,10.45227309]
[1734459429189,2.28,226.59,226.55,8.27115721]
[1734459429397,2.28,226.59,226.55,2.2066]
[1734459429793,2.28,226.59,226.54,6.06455721]
[1734459430192,2.28,226.59,226.53,24.25764203]
[1734459430495,2.28,226.59,226.52,27.32114203]
[1734459430791,2.28,226.59,226.54,2.2067]
[1734459430996,2.28,226.61,226.53,6.06455721]
[1734459431292,4.4861,226.61,226.54,2.2067]
[1734459431492,4.4861,226.61,226.59,0.33491]
[1734459432099,2.2062,226.6,226.59,0.33491]
[1734459434398,12.48242278,226.6,226.59,0.33491]
[1734459436199,2.2062,226.6,226.59,0.33491]
[1734459436805,4.4862,226.6,226.59,0.33491]
[1734459437903,2.28,226.6,226.59,0.33491]
[1734459438997,4.4861,226.6,226.59,0.33491]
[1734459445601,12.55622278,226.6,226.44,6.06455721]
[1734459445801,10.27622278,226.49,226.42,2.9999]
[1734459445997,2.28,226.48,226.42,2.9999]
[1734459446199,2.28,226.48,226.38,2.2083]
[1734459446401,10.27622278,226.46,226.36,4.5714]
[1734459447108,10.27622278,226.46,226.36,6.7799]
[1734459447906,2.2078,226.43,226.36,4.5714]
[1734459448103,2.28,226.46,226.39,10.27622278]
[1734459448307,2.28,226.5,226.39,10.27622278]
[1734459448509,4.4871,226.5,226.39,10.27622278]
[1734459448709,4.4871,226.5,226.45,2.2076]
[1734459449407,4.4871,226.5,226.46,2.9447]
[1734459450604,2.28,226.5,226.46,2.9447]
[1734459451106,2.28,226.53,226.46,2.9447]
[1734459451305,2.28,226.54,226.49,2.2072]
[1734459451504,10.27622278,226.58,226.47,1.495]
[1734459451707,2.28,226.57,226.47,1.495]
[1734459452317,2.2069,226.53,226.47,1.495]
[1734459453415,2.2069,226.53,226.49,2.2072]
[1734459455014,10.27622278,226.79,226.54,10.27622278]
[1734459455219,10.27622278,226.79,226.65,10.27622278]
[1734459455517,10.27622278,226.79,226.66,5.4023]
[1734459455713,10.27622278,226.82,226.68,10.27622278]
[1734459455911,10.27622278,226.85,226.71,10.27622278]
[1734459456117,10.27622278,226.85,226.72,2.28]
[1734459456718,12.55622278,226.85,226.72,2.28]
[1734459457010,12.55622278,226.85,226.76,2.2045]
[1734459457216,35.23554135,227.01,226.74,10.27622278]
[1734459457408,10.27622278,226.9,226.77,10.27622278]
[1734459457608,10.27622278,226.93,226.85,2.2037]
[1734459457806,10.27622278,226.93,226.78,5.3762]
[1734459458007,5.3570325,226.93,226.78,27.85861379]
[1734459458613,5.3570325,226.93,226.79,6.62792576]
[1734459458918,5.3570325,226.93,226.8,2.28]
[1734459459219,5.3570325,226.93,226.79,6.06455721]
[1734459459515,2.28,226.94,226.8,2.28]
[1734459460110,7.48758375,226.94,226.81,1.4645]
[1734459460317,2.203,226.93,226.84,2.2038]
[1734459462012,2.203,226.93,226.81,1.4645]
[1734459462013,2.28,226.94,226.85,4.4837]
[1734459462615,2.28,226.94,226.86,2.2036]
[1734459462908,2.28,226.94,226.85,2.28]
[1734459463310,1.5625,227.0,226.85,2.28]
[1734459463511,4.4826,226.97,226.87,2.2035]
[1734459463717,2.2026,226.97,226.87,2.2035]
[1734459464113,2.2024,226.99,226.9,2.2032]
[1734459464416,2.28,227.02,226.91,5.2461]
[1734459464616,5.16949109,226.99,226.91,2.9661]
[1734459465811,7.37189109,226.99,226.91,2.9661]
[1734459467023,2.2022,227.01,226.91,2.9661]
[1734459467717,2.2023,227.0,226.91,5.1692]
[1734459468020,2.2023,227.0,226.91,5.2261]
[1734459469021,2.2027,226.96,226.91,2.9661]
[1734459470022,5.24551152,227.01,226.91,2.9661]
[1734459470418,5.24551152,227.01,226.91,5.2261]
[1734459472218,2.2023,227.0,226.91,5.2261]
[1734459472520,5.24551152,227.01,226.91,5.2261]
[1734459473025,2.2023,227.0,226.92,2.203]
[1734459473220,5.24551152,227.01,226.92,2.203]
[1734459473920,2.202,227.03,226.95,2.2027]
[1734459474427,2.69716,227.05,226.95,2.2027]
[1734459474723,2.2021,227.02,226.95,2.2027]
[1734459474916,2.2021,227.02,226.93,2.2029]
[1734459475115,2.69716,227.05,226.93,2.2029]
[1734459475322,2.2022,227.01,226.93,2.2029]
[1734459475921,2.2023,227.0,226.93,2.2029]
[1734459476518,2.2022,227.01,226.92,1.4891]
[1734459476725,5.33391227,227.02,226.92,1.4891]
[1734459477327,2.2023,227.0,226.94,2.2028]
[1734459478135,2.2019,227.04,226.98,2.2024]
[1734459478620,0.43716,227.05,226.99,2.2023]
[1734459479728,0.43716,227.05,227.0,2.2022]
[1734459479934,0.43716,227.05,227.03,10.24139046]
[1734459480231,2.2005,227.19,227.05,2.2017]
[1734459480427,2.26,227.18,227.07,10.24139046]
[1734459481630,2.26,227.18,227.09,2.2013]
[1734459481631,2.2008,227.15,227.09,2.2013]
[1734459482429,2.2007,227.17,227.09,2.2013]
[1734459482628,2.2007,227.17,227.1,2.2013]
[1734459482925,2.2007,227.16,227.1,2.2013]
[1734459483627,5.3275729,227.2,227.1,12.44269046]
[1734459483829,2.2004,227.19,227.13,10.24139046]
[1734459485228,2.2003,227.21,227.13,10.24139046]
[1734459485530,2.26,227.25,227.13,10.24139046]
[1734459486026,5.32122993,227.24,227.04,3.0478]
[1734459486328,10.24139046,227.22,227.07,10.24139046]
[1734459486732,10.24139046,227.22,227.1,10.24139046]
[1734459487127,1.4524,227.23,227.1,10.24139046]
[1734459487331,1.4524,227.23,227.08,2.26]
[1734459487332,10.24139046,227.22,227.08,2.26]
[1734459487728,1.4524,227.23,227.1,10.24139046]
[1734459487929,2.2005,227.19,227.13,10.24139046]
[1734459488229,5.32122993,227.24,227.13,10.24139046]
[1734459488531,5.32122993,227.24,227.16,10.24139046]
[1734459488725,5.32122993,227.24,227.13,2.26]
[1734459488928,10.24139046,227.22,227.07,2.26]
[1734459489132,2.26,227.23,227.06,10.24139046]
[1734459489133,10.24139046,227.19,227.06,10.24139046]
[1734459489335,2.26,227.18,227.06,10.24139046]
[1734459489530,2.2009,227.15,227.06,12.44309046]
[1734459489835,2.26,227.18,227.06,12.44309046]
[1734459490227,2.2011,227.13,227.06,12.44309046]
[1734459490430,2.26,227.18,227.07,2.2016]
[1734459491234,2.2011,227.12,227.07,2.2016]
[1734459491433,2.26,227.18,227.05,5.939]
[1734459492234,2.26,227.18,227.05,3.679]
[1734459492427,2.2012,227.12,227.05,5.939]
[1734459492631,2.26,227.17,227.06,2.2016]
[1734459493627,2.26,227.17,227.05,1.4773]
[1734459493836,10.24139046,227.16,227.05,1.4773]
[1734459494429,2.201,227.13,227.05,1.4773]
[1734459494628,10.24139046,227.16,227.05,1.4773]
[1734459495236,10.24139046,227.16,227.04,1.5185]
[1734459495638,2.2016,227.08,227.04,1.5185]
[1734459495938,2.26,227.12,227.04,1.5185]
[1734459496331,2.2016,227.07,227.04,1.5185]
[1734459496532,2.26,227.12,227.04,1.5185]
[1734459497632,10.24139046,227.1,226.99,1.5189]
[1734459498039,2.2016,227.07,226.99,1.5189]
[1734459498234,2.26,227.06,226.96,12.44399046]
[1734459498641,2.2022,227.01,226.96,10.24139046]
[1734459499138,2.2022,227.01,226.94,1.5614]
[1734459499341,2.26,227.01,226.94,1.5614]
[1734459499948,2.2024,226.99,226.94,1.5614]
[1734459500141,2.26,227.01,226.94,1.5614]
[1734459500540,4.4623,227.01,226.96,2.2026]
[1734459500746,2.26,227.01,226.96,12.44399046]
[1734459500941,10.24139046,227.09,226.96,12.44399046]
[1734459501146,2.2021,227.02,226.96,10.24139046]
[1734459501347,2.26,227.08,226.96,10.24139046]
[1734459501541,2.26,227.08,226.94,1.5614]
[1734459501753,2.26,227.08,226.94,3.7642]
[1734459501954,2.26,227.08,226.94,2.2028]
[1734459502551,2.2023,227.0,226.95,2.2027]
[1734459503149,2.26,227.03,226.93,11.74759046]
[1734459503551,2.26,227.03,226.93,1.5062]
[1734459503947,12.50139046,227.03,226.93,1.5062]
[1734459504144,10.24139046,227.0,226.84,6.00261078]
[1734459504352,10.24139046,226.97,226.84,2.8767]
[1734459504552,2.28,226.96,226.84,2.8767]
[1734459504752,2.2033,226.9,226.84,2.8767]
[1734459505550,2.2033,226.9,226.84,5.0805]
[1734459505856,2.2028,226.95,226.86,10.24139046]
[1734459506351,2.28,226.96,226.88,2.2034]
[1734459506552,2.2028,226.95,226.86,36.5318336]
[1734459506755,2.2028,226.95,226.87,10.35830722]
[1734459506950,2.2028,226.95,226.86,18.52400124]
[1734459507148,2.28,227.0,226.89,10.24139046]
[1734459507753,2.2028,226.95,226.9,2.2031]
[1734459508755,2.28,226.99,226.89,10.24139046]
[1734459509764,2.2027,226.96,226.89,10.24139046]
[1734459509952,2.28,226.99,226.89,10.24139046]
[1734459510561,2.2027,226.96,226.92,2.203]
[1734459513462,2.28,227.01,226.95,2.2027]
[1734459514457,2.2024,226.99,226.95,2.2027]
[1734459514663,2.2024,226.99,226.96,2.2026]
[1734459515062,2.2024,226.99,226.94,3.051]
[1734459515462,2.2027,226.96,226.94,3.051]
[1734459515968,2.2025,226.99,226.94,5.2538]
[1734459516163,2.28,227.01,226.94,5.2538]
[1734459516466,2.28,227.01,226.94,3.051]
[1734459516662,2.2027,226.96,226.94,3.051]
[1734459517065,2.28,227.01,226.94,3.051]
[1734459517563,2.2024,226.99,226.95,2.2027]
[1734459517966,2.28,227.01,226.94,3.051]
[1734459518768,2.2024,226.99,226.96,2.2026]
[1734459518967,2.2024,226.99,226.94,3.051]
[1734459519668,2.2024,226.99,226.95,2.2027]
[1734459520161,2.2024,226.99,226.96,2.2026]
[1734459521560,2.2023,227.0,226.96,2.2026]
[1734459521760,2.28,227.01,226.94,1.5699]
[1734459522770,2.2027,226.95,226.94,1.5699]
[1734459522970,2.28,226.96,226.9,1.5471]
[1734459523172,2.28,226.96,226.86,1.4928]
[1734459523872,2.28,226.96,226.86,3.6964]
[1734459524071,12.52139046,226.96,226.86,3.6964]
[1734459524967,12.52139046,226.96,226.86,9.69901078]
[1734459525171,12.52139046,226.96,226.86,3.6964]
[1734459525369,2.2032,226.91,226.87,4.36675995]
[1734459525571,2.2032,226.91,226.87,2.2035]
[1734459525766,4.4039,227.04,226.86,7.49541078]
[1734459526071,1.5488,227.08,226.95,10.24139046]
[1734459526281,2.28,227.07,226.96,5.80815862]
[1734459526573,2.2019,227.04,226.99,2.2023]
[1734459527179,2.28,227.06,227.0,2.2023]
[1734459527473,2.28,227.06,226.98,24.01044314]
[1734459527676,2.2017,227.06,227.01,2.2021]
[1734459528068,2.2017,227.06,226.99,6.00261078]
[1734459528069,10.24139046,227.13,227.0,6.00261078]
[1734459528274,2.28,227.1,227.01,4.36422334]
[1734459528470,2.28,227.09,227.02,4.36599279]